Cogmind - Beta 11 X2 @@@ ROGUE MODE // 2021.03.02 @ 11:39:20 Player: Kyzrati Result: System corrupted Performance ------------- Evolutions (9) 4500 Regions Visited (26) 5200 Robots Destroyed (174) 870 Value Destroyed (16179) 16179 Prototype IDs (30) 600 Alien Tech Used (0) 0 Bonus (14017) 14017 TOTAL SCORE: 41366 Bonus ------- High Alert Combat Kills 92 Follower Combat Kills 9147 Entered Garrisons 2000 Used RIF Installer 5000 Aligned with FarCom 300 Friendly Fire -2522 Cogmind --------- Core Integrity 0/1600 Matter 285/300 Energy 1670/1670 System Corruption 102% Temperature Cool (0) Movement Immobile (Siege) Ox1 Location -1/Command Parts ------- > --- POWER (2) -------- Micro Fission Core > --- PROPULSION (4) --- Medium Treads Advanced Heavy Treads Centrium Leg > --- UTILITY (17) ----- Improved Cooling System Advanced Coolant Injector Huge Storage Unit Superbattery Advanced Targeting Computer Advanced Targeting Computer Advanced Target Analyzer Advanced Hacking Suite > --- WEAPON (2) ------- Railgun Railgun > --- INVENTORY (25) --- Micro Fission Core Myomer Leg Biometal Leg Biometal Leg Centrium Leg Improved Heat Sink Cooling System Trap Reconfigurator Field Recycling Unit (0) Enhanced Quantum Rifle HERF Cannon KE Penetrator KE Penetrator KE Penetrator KE Penetrator Advanced Remote Datajack Advanced Remote Datajack Molecular Scythe Peak State ------------ > --- POWER ------------ Micro Fission Core Light Antimatter Reactor > --- PROPULSION ------- Myomer Leg Biometal Leg Biometal Leg Biometal Leg > --- UTILITY ---------- Advanced Coolant Injector Huge Storage Unit Superbattery Advanced Visual Processing Unit Advanced Targeting Computer Advanced Melee Analysis Suite Advanced Weapon Cycler Layered Medium Armor Plating Layered Heavy Armor Plating Beam Splitter Advanced Hacking Suite Relay Coupler [Swarmer] Relay Coupler [Swarmer] Relay Coupler [Grunt] Relay Coupler [Grunt] Long-range Tractor Beam > --- WEAPON ----------- Advanced Remote Datajack Molecular Scythe > --- INVENTORY -------- Micro Fission Core Light Antimatter Reactor Myomer Leg Biometal Leg Centrium Leg Centrium Leg Antimissile System Relay Coupler [Grunt] Relay Coupler [Demolisher] Relay Coupler [Specialist] Trap Reconfigurator Field Recycling Unit Backup Laser VII Enhanced Quantum Rifle HERF Cannon Heavy Neutron Cannon KE Penetrator KE Penetrator KE Penetrator KE Penetrator Railgun Heavy Shock Bomb Launcher Advanced Remote Datajack Advanced Remote Datajack Force Lance [Rating: 161] Favorites ----------- Power Micro Fission Core Engine Improved Ion Engine Power Core Micro Fission Core Reactor Light Antimatter Reactor Propulsion Armored Wheel Treads Biometal Heavy Treads Leg Biometal Leg Wheel Armored Wheel Utility Relay Coupler [Swarmer] Device Structural Scanner Storage Huge Storage Unit Processor Advanced Targeting Computer Hackware Relay Coupler [Swarmer] Protection Hardened Heavy Armor Plating Weapon Remote Datajack Energy Gun Electrolaser Energy Cannon Heavy Particle Cannon Ballistic Gun Light Assault Rifle Ballistic Cannon Hardcell Cannon Launcher Shock Bomb Launcher Special Weapon Remote Datajack Slashing Weapon Chainsword Piercing Weapon Force Lance Special Melee Weapon Improved Datajack Build | -11 -10 -10 -10 -9 -8 -8 -8 -8 -7 -7 -7 -7 -6 -6 -5 -5 -4 -4 -4 -4 -3 -3 -2 -2 -1 -1 ------- Run | Scr Mat Min Exi Min Mat Gar Mat Gar Fac Gar Fac Gar Fac Gar Fac Gar Fac Gar Fac Gar Res Gar Res Gar Acc Com Slots Evolved 18 | . . . . . 4 . . . 2 . . . 2 . 2 . 2 . . . 2 . 2 . 2 . Power 1 | . . . . . . . . . . . . . . . . . . . . . . . . . 1 . Propulsion 2 | . . . . . . . . . . . . . . . . . . . . . 1 . 1 . . . Utility 15 | . . . . . 4 . . . 2 . . . 2 . 2 . 2 . . . 1 . 1 . 1 . Weapon . | . . . . . . . . . . . . . . . . . . . . . . . . . . . Parts Attached 498 | 6 4 . 4 3 29 26 11 30 13 15 9 20 6 9 5 12 22 16 7 22 5 7 22 24 73 98 Power 36 | 1 1 . . . 2 2 . 2 2 1 . 1 1 . . 1 . 3 1 . . . 1 1 6 10 Engine 11 | 1 1 . . . 2 2 . 1 1 1 . 1 . . . 1 . . . . . . . . . . Core 10 | . . . . . . . . 1 1 . . . 1 . . . . . 1 . . . 1 1 . 4 Reactor 15 | . . . . . . . . . . . . . . . . . . 3 . . . . . . 6 6 Propulsion 64 | 2 1 . 4 1 9 3 2 1 . . 2 1 . 2 1 . . . 3 3 1 . 1 3 10 14 Treads 17 | 2 . . . . 4 2 . . . . . . . . . . . . . . . . . 1 4 4 Leg 13 | . . . 2 . . . . . . . . . . . . . . . . . . . . . 1 10 Wheel 34 | . 1 . 2 1 5 1 2 1 . . 2 1 . 2 1 . . . 3 3 1 . 1 2 5 . Hover . | . . . . . . . . . . . . . . . . . . . . . . . . . . . Flight . | . . . . . . . . . . . . . . . . . . . . . . . . . . . Utility 253 | . 2 . . . 8 9 4 14 7 12 3 11 5 7 4 9 13 9 1 16 4 7 13 17 30 48 Device 73 | . 1 . . . 5 4 1 3 2 . . 1 1 . 1 . 5 . . 6 . 1 3 6 11 22 Storage 11 | . 1 . . . . . . . . . . . . . . . . 1 . 1 . . . . 3 5 Processor 12 | . . . . . 1 . . . 2 . . . . . . . . . . . . . 2 1 1 5 Hackware 96 | . . . . . . . . 6 1 7 2 5 3 6 3 7 6 5 1 5 4 6 6 7 12 4 Protection 61 | . . . . . 2 5 3 5 2 5 1 5 1 1 . 2 2 3 . 4 . . 2 3 3 12 Artifact . | . . . . . . . . . . . . . . . . . . . . . . . . . . . Weapon 145 | 3 . . . 2 10 12 5 13 4 2 4 7 . . . 2 9 4 2 3 . . 7 3 27 26 Energy Gun 6 | 1 . . . . . 2 . 2 . . . . . . . . . . . . . . . . . 1 Energy Cannon 13 | . . . . . 5 2 . . . . . . . . . . . . . . . . 1 . . 5 Ballistic Gun 13 | 2 . . . 1 4 . . . . . . . . . . . . . . . . . . . . 6 Ballistic Cannon 38 | . . . . . . 5 3 2 2 . 1 3 . . . 1 3 . 1 2 . . 2 1 10 2 Launcher 20 | . . . . 1 . 3 1 1 . 1 1 . . . . . . 1 . 1 . . 1 . 6 3 Special Weapon 26 | . . . . . . . . 3 2 . . 3 . . . . 2 1 . . . . 1 . 8 6 Impact Weapon . | . . . . . . . . . . . . . . . . . . . . . . . . . . . Slashing Weapon 16 | . . . . . 1 . 1 4 . 1 2 1 . . . 1 3 . . . . . . . . 2 Piercing Weapon 12 | . . . . . . . . . . . . . . . . . 1 2 1 . . . 2 2 3 1 Special Melee Weapon 1 | . . . . . . . . 1 . . . . . . . . . . . . . . . . . . Unidentified Prototypes 2 | . . . . . . . . . . . . . . . . . . . . . . . . . . 2 Parts Lost 79 | . 1 . . . 12 9 . . . . . 2 . . . . . . . 1 . . 2 . 13 39 Power 9 | . 1 . . . 2 1 . . . . . . . . . . . . . . . . . . 1 4 Propulsion 14 | . . . . . 4 2 . . . . . 1 . . . . . . . . . . . . 3 4 Utility 41 | . . . . . 2 3 . . . . . 1 . . . . . . . . . . 2 . 7 26 Weapon 15 | . . . . . 4 3 . . . . . . . . . . . . . 1 . . . . 2 5 Highest Loss Streak 12 | . 1 . . . 8 5 . . . . . 1 . . . . . . . 1 . . 1 . 8 12 Average Slot Usage (%) 88 | . 82 100 99 100 86 93 100 99 97 95 99 99 97 91 84 83 85 81 83 74 82 79 83 84 90 89 Engine 3 | . 13 14 14 14 8 9 9 4 6 5 7 7 3 . . . 5 . . . . . . . . . Core 2 | . . . . . . . . 4 . 1 . . 2 6 5 4 . . . 5 4 4 4 4 . 3 Reactor 1 | . . . . . . . . . . . . . . . . . . 4 4 . . . . . 7 4 Treads 1 | . 17 14 9 . 1 7 . . . . . . . . . . . . . . . . . 2 3 3 Leg 1 | . . . . . . . . . . . . . . . . . . . . . . . . . . 9 Wheel 9 | . 10 14 18 28 16 10 17 18 15 15 15 14 13 13 8 5 5 5 5 5 9 9 13 9 8 . Device 6 | . 2 14 14 14 24 20 10 4 3 . . 3 7 . . . 3 5 4 2 4 7 6 3 7 11 Storage 6 | . 10 14 14 14 9 9 9 9 7 7 7 7 6 6 5 5 5 5 5 5 4 4 4 4 5 8 Processor 5 | . . . . . 3 9 9 2 9 15 15 15 13 1 . . . . . . . . 1 7 5 11 Hackware 26 | . . . . . . . . 22 23 20 25 23 26 42 45 42 44 38 42 34 35 28 30 28 36 26 Protection 10 | . . . . . 6 10 25 15 13 13 12 10 8 6 5 10 11 11 10 10 14 14 13 13 6 3 Ballistic Gun 1 | . 28 28 28 27 6 . . . . . . . . . . . . . . . . . . . . . Ballistic Cannon 2 | . . . . . . 12 7 . 2 . . . . . . . . . . 4 4 4 2 3 1 . Special Weapon 3 | . . . . . . . . 7 4 7 7 6 6 6 5 5 5 5 5 5 4 4 3 4 3 1 Slashing Weapon 2 | . . . . . . . . 6 7 6 6 6 6 6 5 4 4 2 . . . . . . . 1 Naked Turns . | . . . . . . . . . . . . . . . . . . . . . . . . . . . Heaviest Build 191 | 6 91 91 91 94 119 121 118 118 108 109 110 116 113 116 116 124 131 148 144 159 147 148 152 152 171 191 Greatest Support 150 | 40 40 16 20 22 26 26 26 28 28 28 28 24 24 24 28 28 28 28 28 28 40 40 56 56 110 150 Greatest Overweight (x) 11 | 1 5 5 5 4 11 10 7 4 3 3 4 9 4 4 4 4 4 5 5 5 3 3 2 5 6 2 Average Overweight (x) 3 | . 3 5 4 4 4 6 4 3 3 3 3 4 4 4 4 4 4 4 4 4 3 3 2 3 3 . Largest Inventory Capacity 25 | 5 25 25 25 25 25 25 25 25 25 25 25 25 25 25 25 25 25 25 25 25 25 25 25 25 25 25 Average Capacity 24 | 5 19 25 25 25 25 25 25 25 25 25 25 25 25 25 25 25 25 25 25 25 25 25 25 25 25 25 Most Carried 25 | 5 11 11 18 20 25 25 25 25 25 25 25 25 25 25 25 25 25 25 25 25 24 25 25 25 25 25 Average Carried 23 | 2 7 11 15 18 22 22 24 24 24 24 24 24 24 24 24 24 23 24 24 24 20 23 24 24 24 23 Final Capacity 25 | 5 25 25 25 25 25 25 25 25 25 25 25 25 25 25 25 25 25 25 25 25 25 25 25 25 25 25 Final Carried 25 | 5 11 11 18 20 25 25 25 25 25 25 25 25 25 25 24 25 22 25 25 25 21 25 23 25 24 18 Class Distribution -------------------- 66% | Botlord-Mutant 15% | Bothacker-Mutant 11% | Mutant 3% | Scavenger-Mutant Dominant Class ---------------- Mutant | -10/Materials Mutant | -10/Mines Mutant | -10/Exiles Skirmisher | -9/Mines Mutant | -8/Materials Mutant | -8/Garrison Scavenger-Mutant | -8/Materials Bothacker-Mutant | -8/Garrison Bothacker-Mutant | -7/Factory Bothacker-Mutant | -7/Garrison Bothacker-Mutant | -7/Factory Botlord-Mutant | -7/Garrison Botlord-Mutant | -6/Factory Botlord-Mutant | -6/Garrison Botlord-Mutant | -5/Factory Botlord-Mutant | -5/Garrison Botlord-Mutant | -4/Factory Botlord-Mutant | -4/Garrison Botlord-Mutant | -4/Factory Botlord-Mutant | -4/Garrison Botlord-Mutant | -3/Research Botlord-Mutant | -3/Garrison Botlord-Mutant | -2/Research Botlord-Mutant | -2/Garrison Botlord-Mutant | -1/Access Botlord-Mutant | -1/Command Resources | -11 -10 -10 -10 -9 -8 -8 -8 -8 -7 -7 -7 -7 -6 -6 -5 -5 -4 -4 -4 -4 -3 -3 -2 -2 -1 -1 ----------- Run | Scr Mat Min Exi Min Mat Gar Mat Gar Fac Gar Fac Gar Fac Gar Fac Gar Fac Gar Fac Gar Res Gar Res Gar Acc Com Matter Collected 11270 | 123 309 . . 249 283 805 257 550 215 375 148 353 95 155 130 322 336 402 175 506 . 637 401 746 1898 1800 Remotely 407 | . . . . . 212 105 . . . . . . . . . . . . . . . . . . . 90 Salvage Created 10854 | . 207 . . 127 503 437 447 585 157 84 56 242 30 797 20 140 112 362 . 154 . 58 290 191 2293 3562 Parts 582 | . 19 . . 12 24 18 23 16 11 7 4 20 . 15 4 10 8 16 . 5 . 1 10 4 146 209 Haulers Intercepted 3 | . 2 . . . 1 . . . . . . . . . . . . . . . . . . . . . Recyclers Shooed 6 | . . . . . . . 4 . . . . . . . . . . . . . . . . . 2 . Parts Field Recycled 47 | . . . . . 6 35 . 6 . . . . . . . . . . . . . . . . . . Retrieved Matter 244 | . . . . . 102 108 . 34 . . . . . . . . . . . . . . . . . . Parts Self-Destructed . | . . . . . . . . . . . . . . . . . . . . . . . . . . . Prevented . | . . . . . . . . . . . . . . . . . . . . . . . . . . . Kills | -11 -10 -10 -10 -9 -8 -8 -8 -8 -7 -7 -7 -7 -6 -6 -5 -5 -4 -4 -4 -4 -3 -3 -2 -2 -1 -1 ------- Run | Scr Mat Min Exi Min Mat Gar Mat Gar Fac Gar Fac Gar Fac Gar Fac Gar Fac Gar Fac Gar Res Gar Res Gar Acc Com Combat Hostiles Destroyed 118 | . 3 . . 4 7 15 4 6 2 1 1 3 . 1 . 1 1 5 . 2 . . 3 . 26 33 Melee 26 | . . . . . . . . 1 . . . 3 . 1 . 1 1 . . . . . . . 3 16 Guns 21 | . 3 . . 4 4 2 3 2 . . . . . . . . . . . . . . . . . 3 Cannons 33 | . . . . . 3 7 1 . 2 . . . . . . . . . . . . . . . 12 8 AOE 22 | . . . . . . 6 . 1 . 1 1 . . . . . . 2 . 1 . . 1 . 7 2 Classes Destroyed 15 | . 4 . . 1 3 . 3 . 1 1 . 1 . . . . . . . . . . . . 1 . Worker 16 | . 2 . . . 1 . 1 . . . . . 1 . . . 2 . . . . . . . 6 3 Builder 8 | . . . . . . . 1 . . . . . . . 1 . 1 . . . . . . . 5 . Tunneler 2 | . 1 . . . . . 1 . . . . . . . . . . . . . . . . . . . Hauler 3 | . 2 . . . 1 . . . . . . . . . . . . . . . . . . . . . Recycler 11 | . . . . . 2 . 4 . 1 . . . . . . . . . . . . . . . 1 3 Operator 2 | . . . . . . . . . . . . . . . . . . . . . . . . . 2 . Watcher 4 | . . . . . . . 1 . 1 . . . . . . . . . . . . . 1 . . 1 Swarmer 15 | . 3 . . 2 2 3 1 1 . 1 . 1 . . . 1 . . . . . . . . . . Grunt 33 | . . . . 2 2 9 1 5 . . 1 . . 3 . 2 1 5 . . . . . . 2 . Brawler 1 | . . . . . . . . . . . . 1 . . . . . . . . . . . . . . Duelist 3 | . . . . . . . 1 1 . . . 1 . . . . . . . . . . . . . . Sentry 5 | . . . . . 1 2 1 . . . . . . . . . . . . . . . . . . 1 Specialist 3 | . . . . . . . . . . 1 . 2 . . . . . . . . . . . . . . Hunter 26 | . . . . . 2 1 . 1 . . . . . . . . . . . 2 . 1 2 . 12 5 Programmer 41 | . . . . . . . . . 2 . . . . . . . . . . . . . 1 . 12 26 Guerrilla 1 | . . . . . . . . . . . . . . . . . . . . . . . . . . 1 Best Kill Streak 8 | . 3 . . 2 4 3 4 5 2 1 1 1 1 1 1 1 1 5 . 2 . . 3 . 8 5 Combat Bots Only 5 | . 3 . . 2 3 3 1 5 1 1 1 1 . 1 . 1 1 5 . 2 . . 3 . 4 5 Max Kills in Single Turn 3 | . 2 . . 2 1 1 1 1 1 1 1 1 1 1 1 1 1 1 . 1 . 1 1 . 2 3 Gunslinging 1 | . . . . 1 . . . . . . . . . . . . . . . . . . . . . . Exploded 2 | . . . . . . 1 . 1 . 1 1 . . . . . . 1 . 1 . . 1 . 2 1 Melee 1 | . . . . . . . . 1 . . . 1 . 1 . 1 1 . . . . . . . 1 1 Uniques/NPCs Destroyed . | . . . . . . . . . . . . . . . . . . . . . . . . . . . Combat | -11 -10 -10 -10 -9 -8 -8 -8 -8 -7 -7 -7 -7 -6 -6 -5 -5 -4 -4 -4 -4 -3 -3 -2 -2 -1 -1 -------- Run | Scr Mat Min Exi Min Mat Gar Mat Gar Fac Gar Fac Gar Fac Gar Fac Gar Fac Gar Fac Gar Res Gar Res Gar Acc Com Damage Taken 20135 | . 148 . . 149 1424 952 196 273 59 267 55 653 18 63 174 369 138 493 50 431 158 117 642 321 3917 9068 Core 1904 | . . . . 14 193 96 33 40 15 62 . 200 . 10 25 37 . 51 . 100 . . 24 . 180 824 Absorbed by Shields 2484 | . . . . . . . . 36 . . . . 18 41 47 27 83 15 25 . . 7 126 128 1931 . Reduced by Siege Mode 169 | . . . . . . . . . . . . . . . . . . . . . . . . . 44 125 Core Remaining (%) 84 | 100 . . . 94 . . . 34 . . . 60 . 98 . 93 . . . 86 . 100 . 98 . . Volleys Fired 882 | . 13 2 . 15 67 47 27 25 14 28 9 20 9 11 19 37 25 31 14 44 25 44 43 53 150 110 Largest 2 | . 2 2 . 2 2 2 2 2 1 1 1 1 1 1 1 1 1 1 1 1 1 1 1 1 1 2 Hottest 182 | . 40 40 . 40 150 150 107 107 48 36 48 48 30 30 30 48 48 40 48 65 65 65 94 65 65 182 Shots Fired 1028 | . 26 4 . 27 120 83 40 31 14 28 9 20 9 11 19 37 25 31 14 44 25 44 43 53 148 123 Gun 215 | . 26 4 . 24 78 14 20 8 . . . . . . . . . . . . . . . . . 41 Cannon 376 | . . . . . 42 60 15 4 4 . 1 9 . . . 2 2 . 3 7 16 27 26 34 75 49 Launcher 100 | . . . . 3 . 9 5 6 . 1 2 . . . . . . 11 . 11 . . 4 . 35 13 Special 337 | . . . . . . . . 13 10 27 6 11 9 11 19 35 23 20 11 26 9 17 13 19 38 20 Kinetic 461 | . 26 4 . 24 78 43 15 4 4 . 1 9 . . . 2 2 . 3 7 16 27 20 34 75 67 Thermal 113 | . . . . . 42 31 20 8 . . . . . . . . . . . . . . . . . 12 Explosive 17 | . . . . 3 . 9 5 . . . . . . . . . . . . . . . . . . . Electromagnetic 100 | . . . . . . . . 6 . 1 2 . . . . . . 11 . 11 . . 10 . 35 24 Robot Hit Streak 41 | . 5 6 . 4 10 10 5 10 4 3 7 11 2 11 3 13 16 4 3 6 9 6 6 5 10 41 Robot Miss Streak 9 | . 1 1 . 4 3 9 7 4 1 2 2 1 2 1 4 1 1 2 2 2 2 2 2 2 2 2 Penetration Max 1 | . . . . . 1 . . . . . . . . . . . . . . . . . . . . 1 Secondary Targets 1 | . . . . 1 . . . . . . . . . . . . . . . . . . . . . . Max Gunslinging Chain 1 | . . . . 1 . . . . . . . . . . . . . . . . . . . . . . Shots Hit Robots 779 | . 17 2 . 12 72 56 26 33 14 22 7 28 7 31 13 31 26 16 9 19 6 16 25 20 105 166 Core Hits 316 | . 11 . . 7 25 38 21 20 4 2 1 8 1 10 1 3 5 10 . 5 . 1 7 2 64 70 Critical Hits 22 | . . . . . . . . . . 1 . . 1 1 . . . . . . . 1 . 1 2 15 Critical Kills 6 | . . . . . . . . . . . . . 1 . . . . . . . . . . . . 5 Critical Parts Destroyed 13 | . . . . . . . . . . 1 . . . 1 . . . . . . . 1 . 1 2 7 Melee Attacks 334 | . . . . . . . 6 24 4 9 . 23 5 33 17 37 12 6 6 . . . 4 4 48 96 Impact . | . . . . . . . . . . . . . . . . . . . . . . . . . . . Slashing 212 | . . . . . . . 6 23 4 9 . 23 5 33 17 37 12 2 . . . . . . . 41 Piercing 121 | . . . . . . . . . . . . . . . . . . 4 6 . . . 4 4 48 55 Sneak Attacks 40 | . . . . . . . 3 1 3 3 . 4 1 2 3 3 4 . 1 . . . 2 . 7 3 Combat Hostiles 3 | . . . . . . . . . . . . . . . . 1 . . . . . . . . 2 . Follow-up Attacks . | . . . . . . . . . . . . . . . . . . . . . . . . . . . Damage Inflicted 25227 | . 195 25 . 145 1030 1414 1050 1453 437 389 78 841 149 1717 317 334 519 932 110 272 . 90 729 407 5211 7383 Guns 2224 | . 195 25 . 145 530 122 187 69 . . . . . . . . . . . . . . . . . 951 Cannons 5477 | . . . . . 500 734 166 46 129 . 31 226 . . . 25 37 . . . . 90 401 78 1710 1304 Explosions 5911 | . . . . . . 558 393 368 . 53 47 . . . . . . 932 . 272 . . 165 . 2276 847 Melee 11615 | . . . . . . . 304 970 308 336 . 615 149 1717 317 309 482 . 110 . . . 163 329 1225 4281 Ramming . | . . . . . . . . . . . . . . . . . . . . . . . . . . . Kinetic 5506 | . 195 25 . 145 530 434 166 46 129 . 31 226 . . . 25 37 . . . . 90 157 78 1710 1482 Thermal 2945 | . . . . . 500 422 187 69 . 53 . . . . . . . 423 . 59 . . 42 . 376 814 Explosive 951 | . . . . . . 558 393 . . . . . . . . . . . . . . . . . . . Electromagnetic 4210 | . . . . . . . . 368 . . 47 . . . . . . 509 . 213 . . 367 . 1900 806 Impact . | . . . . . . . . . . . . . . . . . . . . . . . . . . . Slashing 8163 | . . . . . . . 304 970 308 336 . 615 149 1717 317 309 482 . . . . . . . . 2656 Piercing 3452 | . . . . . . . . . . . . . . . . . . . 110 . . . 163 329 1225 1625 Highest Corruption 102 | . 3 4 4 4 . 10 11 11 3 3 3 3 . . . . . . . . . . . . 24 102 Average Corruption 16 | . 2 3 4 4 . 10 10 11 2 3 3 3 . . . . . . . . . . . . 17 47 Corruption Purged . | . . . . . . . . . . . . . . . . . . . . . . . . . . . Effects 648 | . 9 7 13 7 . 89 38 100 3 31 6 29 . . . . . . . . . . . . 70 246 Message Errors 140 | . 3 . 2 4 . 16 12 25 . 8 . 6 . . . . . . . . . . . . 15 49 Matter Fused 129 | . 2 3 6 . . 17 8 18 1 8 2 7 . . . . . . . . . . . . 17 40 Heat Flow Errors 66 | . . 1 2 . . 10 3 10 . 10 2 7 . . . . . . . . . . . . 4 17 Energy Discharges 79 | . 1 1 3 3 . 13 2 15 . 2 1 2 . . . . . . . . . . . . 12 24 Parts Rejected 6 | . . . . . . 1 . . . . . . . . . . . . . . . . . . 3 2 Data Loss (minor) 75 | . 3 2 . . . 9 3 12 2 3 1 7 . . . . . . . . . . . . 5 28 Data Loss (major) 19 | . . . . . . 5 . 5 . . . . . . . . . . . . . . . . . 9 Misfires 18 | . . . . . . 5 2 2 . . . . . . . . . . . . . . . . 1 8 Alerts 7 | . . . . . . 1 . 2 . . . . . . . . . . . . . . . . 1 3 Misdirections 85 | . . . . . . 10 5 11 . . . . . . . . . . . . . . . . 9 50 Weapon Failures 24 | . . . . . . 2 3 . . . . . . . . . . . . . . . . . 3 16 Overload Shots . | . . . . . . . . . . . . . . . . . . . . . . . . . . . Overflow Damage 1657 | . 46 . . . 20 8 95 47 124 51 . . 77 79 138 . 140 13 80 . . 6 102 . 242 389 Projectiles 212 | . . . . . 20 6 . . . . . . . . . . . . . . . 6 19 . 48 113 Explosions 137 | . 46 . . . . 2 30 . . . . . . . . . . 13 . . . . . . 37 9 Melee 1308 | . . . . . . . 65 47 124 51 . . 77 79 138 . 140 . 80 . . . 83 . 157 267 Knockbacks 39 | . . . . . . 14 2 . 2 . . 1 . . . . . . . . . 2 1 . 12 5 Impact . | . . . . . . . . . . . . . . . . . . . . . . . . . . . Kinetic 38 | . . . . . . 13 2 . 2 . . 1 . . . . . . . . . 2 1 . 12 5 Secondary 1 | . . . . . . 1 . . . . . . . . . . . . . . . . . . . . Self-Inflicted Damage 201 | . 86 . . . . . . . . . . . . . . . . 2 . 54 . . . . 52 7 Shots 7 | . 1 . . . . . . . . . . . . . . . . 1 . 2 . . . . 2 1 Rammed 1 | . . 1 . . . . . . . . . . . . . . . . . . . . . . . . Targets Rammed 1 | . . 1 . . . . . . . . . . . . . . . . . . . . . . . . Kicked . | . . . . . . . . . . . . . . . . . . . . . . . . . . . Crushed . | . . . . . . . . . . . . . . . . . . . . . . . . . . . Highest Temperature 367 | . 4 102 146 18 347 224 230 273 8 264 274 269 16 20 17 35 55 130 60 367 112 256 116 238 212 245 Average Temperature 69 | . 1 47 78 5 147 87 64 77 5 76 117 81 8 10 10 14 18 46 27 99 37 64 35 45 48 58 Received Heat Transfer 1444 | . 6 . . 63 216 225 72 63 . 36 21 135 4 21 9 18 17 51 13 102 27 . 13 35 81 216 Effects 10 | . . . . . 4 . . . . 1 . . . . . . . . . 2 . 3 . . . . Energy Bleed 5 | . . . . . 4 . . . . 1 . . . . . . . . . . . . . . . . Interference 3 | . . . . . . . . . . . . . . . . . . . . . . 3 . . . . Matter Decay 1 | . . . . . . . . . . . . . . . . . . . . 1 . . . . . . Short Circuit 1 | . . . . . . . . . . . . . . . . . . . . 1 . . . . . . Siege Activations 4 | . . . . . . . . . . . . . . . . . . . . . . . . . 1 3 Total Turns 72 | . . . . . . . . . . . . . . . . . . . . . . . . . 6 66 Longest Duration 43 | . . . . . . . . . . . . . . . . . . . . . . . . . 6 43 Robots Corrupted 15 | . . . . . . . . 2 . . . . . . . . . 3 . 1 . . 2 . 4 3 Combat Hostiles 15 | . . . . . . . . 2 . . . . . . . . . 3 . 1 . . 2 . 4 3 Parts Fried 23 | . . . . . . . . 3 . . . . . . . . . 3 . 3 . . 4 . 6 4 Impact Corruptions . | . . . . . . . . . . . . . . . . . . . . . . . . . . . Robots Melted 1 | . . . . . . . . . . . . . . . . . . . . . . . . . . 1 Combat Hostiles 1 | . . . . . . . . . . . . . . . . . . . . . . . . . . 1 Parts Melted 8 | . . . . . . 2 . . . . . . . . . . . . . . . . . . . 6 Heat Transferred 3409 | . . . . . 740 703 407 148 . . . . . . . . . 250 . 100 . . . . 350 711 Parts Sabotaged . | . . . . . . . . . . . . . . . . . . . . . . . . . . . Parts Stolen . | . . . . . . . . . . . . . . . . . . . . . . . . . . . Parts Stripped . | . . . . . . . . . . . . . . . . . . . . . . . . . . . Power Chain Reactions 25 | . . . . . . . . . . 1 . . . . . . . 2 . 2 . . 2 . 9 9 Missiles Intercepted 13 | . . . . . . . . . . . . . . . . . . . . . . . . . . 13 Alert | -11 -10 -10 -10 -9 -8 -8 -8 -8 -7 -7 -7 -7 -6 -6 -5 -5 -4 -4 -4 -4 -3 -3 -2 -2 -1 -1 ------- Run | Scr Mat Min Exi Min Mat Gar Mat Gar Fac Gar Fac Gar Fac Gar Fac Gar Fac Gar Fac Gar Res Gar Res Gar Acc Com Peak Influence 742 | . 134 . . 112 224 511 420 627 403 272 286 742 446 493 303 264 233 373 220 270 223 376 217 251 293 293 Initial 389 | . . . . . . 50 248 37 329 179 142 196 389 312 258 14 138 11 195 25 151 11 211 44 150 169 Average 204 | . 81 . . 90 69 258 203 430 314 221 188 617 404 402 178 142 83 151 179 143 82 254 82 123 124 70 Maximum Alert Level 3 | . . . . . 1 2 2 2 2 1 1 3 2 2 1 1 1 1 1 1 1 1 1 1 1 1 Low Security (%) 57 | 100 100 100 . 100 95 48 50 4 . 35 63 . . . 47 65 80 65 62 66 98 27 77 76 85 98 Level 1 30 | . . . . . 4 32 38 42 90 64 36 12 59 53 52 34 19 34 37 33 1 72 22 23 14 1 Level 2 10 | . . . . . . 18 10 52 9 . . 59 40 46 . . . . . . . . . . . . Level 3 1 | . . . . . . . . . . . . 26 . . . . . . . . . . . . . . Level 4 . | . . . . . . . . . . . . . . . . . . . . . . . . . . . Level 5 . | . . . . . . . . . . . . . . . . . . . . . . . . . . . High Security . | . . . . . . . . . . . . . . . . . . . . . . . . . . . Max Security . | . . . . . . . . . . . . . . . . . . . . . . . . . . . Squads Dispatched 55 | . 2 . . . 1 . . . 1 . 5 . 2 . 2 . 7 . 3 . . . 7 . 13 12 Investigation 4 | . 1 . . . . . . . . . 1 . 2 . . . . . . . . . . . . . Extermination 24 | . . . . . . . . . 1 . 1 . . . . . 3 . 1 . . . 3 . 5 10 Reinforcement 19 | . 1 . . . 1 . . . . . 2 . . . 2 . 3 . 2 . . . 1 . 5 2 Assault . | . . . . . . . . . . . . . . . . . . . . . . . . . . . Garrison 8 | . . . . . . . . . . . 1 . . . . . 1 . . . . . 3 . 3 . Intercept . | . . . . . . . . . . . . . . . . . . . . . . . . . . . Construction Impeded 6 | . . . . . . . . . . . . . . . 1 . 1 . . . . . 1 . 3 . Haulers Reinforced 3 | . . . . . . . . . . . 2 . . . . . 1 . . . . . . . . . Alert ID Control Effect 226 | . . . . . . . . 3 . 7 7 1 3 13 10 11 37 17 6 9 . 16 35 14 27 10 Stealth | -11 -10 -10 -10 -9 -8 -8 -8 -8 -7 -7 -7 -7 -6 -6 -5 -5 -4 -4 -4 -4 -3 -3 -2 -2 -1 -1 --------- Run | Scr Mat Min Exi Min Mat Gar Mat Gar Fac Gar Fac Gar Fac Gar Fac Gar Fac Gar Fac Gar Res Gar Res Gar Acc Com Distress Signals 16 | . . . . 2 4 . 1 . . . . . . . 1 . . . . . . . 3 . 3 2 Communications Jammed . | . . . . . . . . . . . . . . . . . . . . . . . . . . . Distress Signals . | . . . . . . . . . . . . . . . . . . . . . . . . . . . Times Spotted 582 | . 11 . . 7 19 14 12 22 5 22 10 24 3 22 18 33 37 25 13 29 6 25 39 29 84 73 Peak Tracking Total 11 | . 4 . . 3 7 2 3 5 2 5 4 6 3 10 5 6 7 5 3 11 2 7 8 4 9 6 Tactical Retreats 20 | . . . . 1 4 1 3 3 . . . 1 . 1 . . . 1 . . . . 2 . 1 2 Traps | -11 -10 -10 -10 -9 -8 -8 -8 -8 -7 -7 -7 -7 -6 -6 -5 -5 -4 -4 -4 -4 -3 -3 -2 -2 -1 -1 ------- Run | Scr Mat Min Exi Min Mat Gar Mat Gar Fac Gar Fac Gar Fac Gar Fac Gar Fac Gar Fac Gar Res Gar Res Gar Acc Com Traps Triggered 82 | . 3 . . . . 3 1 8 2 12 . 6 1 9 . 11 . 9 . 8 . 2 1 6 . . Indirectly 1 | . . . . . . . . . . . . . . . . . . . . . . . 1 . . . Trap Hack Attempts . | . . . . . . . . . . . . . . . . . . . . . . . . . . . Triggered . | . . . . . . . . . . . . . . . . . . . . . . . . . . . Disarmed . | . . . . . . . . . . . . . . . . . . . . . . . . . . . Reprogrammed . | . . . . . . . . . . . . . . . . . . . . . . . . . . . Reused 15 | . . . . . . . 3 1 . . . . . . . . 4 . . 1 . . 3 . 2 1 Traps Reconfigurated 134 | . . . . . . 2 4 6 2 . . 9 1 . 3 . 10 . . 15 . 10 28 20 17 7 Traps Extracted . | . . . . . . . . . . . . . . . . . . . . . . . . . . . Installed . | . . . . . . . . . . . . . . . . . . . . . . . . . . . Triggered 15 | . . . . . . . 3 1 . . . . . . . . 4 . . 1 . . 3 . 2 1 Exploded 2 | . . . . . 2 . . . . . . . . . . . . . . . . . . . . . Machines | -11 -10 -10 -10 -9 -8 -8 -8 -8 -7 -7 -7 -7 -6 -6 -5 -5 -4 -4 -4 -4 -3 -3 -2 -2 -1 -1 ---------- Run | Scr Mat Min Exi Min Mat Gar Mat Gar Fac Gar Fac Gar Fac Gar Fac Gar Fac Gar Fac Gar Res Gar Res Gar Acc Com Machines Disabled 72 | . 2 . . . 2 3 1 5 . 4 6 4 . 4 . 4 3 5 . 6 1 7 2 9 1 3 Max in Single Turn 2 | . 2 . . . 1 1 1 1 . 1 . 1 . 1 . 1 . 1 . 1 1 1 1 1 1 1 Garrison Access 4 | . . . . . . . . . . . . . . . . . . . . . . . 1 . 3 . Garrison Relay 41 | . . . . . . 3 . 4 . 4 . 4 . 4 . 5 . 4 . 4 . 4 . 5 . . Machines Sabotaged . | . . . . . . . . . . . . . . . . . . . . . . . . . . . Garrisons Compromised . | . . . . . . . . . . . . . . . . . . . . . . . . . . . Overloaded Fab Kills . | . . . . . . . . . . . . . . . . . . . . . . . . . . . Fab Network Shutdowns . | . . . . . . . . . . . . . . . . . . . . . . . . . . . Hacking | -11 -10 -10 -10 -9 -8 -8 -8 -8 -7 -7 -7 -7 -6 -6 -5 -5 -4 -4 -4 -4 -3 -3 -2 -2 -1 -1 --------- Run | Scr Mat Min Exi Min Mat Gar Mat Gar Fac Gar Fac Gar Fac Gar Fac Gar Fac Gar Fac Gar Res Gar Res Gar Acc Com Machines Accessed 46 | . 1 1 2 1 2 . 6 . 5 . 1 . 1 . 1 . 3 . 2 . 1 . 5 . 10 4 Terminals 26 | . 1 1 . 1 1 . 5 . 3 . . . . . . . 1 . 1 . . . 2 . 6 4 Fabricators 2 | . . . . . . . . . . . . . . . . . 1 . . . . . 1 . . . Repair Stations 1 | . . . . . . . . . . . . . . . . . . . . . . . . . 1 . Recycling Units . | . . . . . . . . . . . . . . . . . . . . . . . . . . . Scanalyzers 1 | . . . . . . . . . 1 . . . . . . . . . . . . . . . . . Garrison Access 14 | . . . . . 1 . 1 . 1 . 1 . 1 . 1 . 1 . 1 . 1 . 2 . 3 . Total Hacks 100 | . 3 2 5 4 3 . 19 . 12 . 3 . 2 . 2 . 6 . 3 . 2 . 8 . 20 6 Successful 49 | . . . 5 1 2 . 8 . 5 . 1 . 2 . 1 . 3 . 1 . 1 . 3 . 13 3 Failed 51 | . 3 2 . 3 1 . 11 . 7 . 2 . . . 1 . 3 . 2 . 1 . 5 . 7 3 Catastrophic 13 | . 2 . . 1 1 . 2 . 1 . . . . . . . . . 2 . . . 1 . 2 1 Database Lockouts . | . . . . . . . . . . . . . . . . . . . . . . . . . . . Manual 62 | . 3 2 1 4 2 . 17 . 5 . 2 . 1 . 1 . 5 . 1 . 1 . 5 . 8 4 Terminals 62 | . 3 2 . 4 2 . 18 . 8 . . . . . . . 4 . 1 . . . 4 . 10 6 Fabricators 2 | . . . . . . . . . . . . . . . . . 1 . . . . . 1 . . . Repair Stations 1 | . . . . . . . . . . . . . . . . . . . . . . . . . 1 . Recycling Units . | . . . . . . . . . . . . . . . . . . . . . . . . . . . Scanalyzers 3 | . . . . . . . . . 3 . . . . . . . . . . . . . . . . . Garrison Access 27 | . . . . . 1 . 1 . 1 . 3 . 2 . 2 . 1 . 2 . 2 . 3 . 9 . Terminal Hacks 19 | . . . 5 1 1 . 4 . 1 . . . . . . . . . . . . . 1 . 4 2 Record 4 | . . . 4 . . . . . . . . . . . . . . . . . . . . . . . Part Schematic 3 | . . . . 1 1 . 1 . . . . . . . . . . . . . . . . . . . Open Door 3 | . . . . . . . . . . . . . . . . . . . . . . . . . 3 . Terminal Index 1 | . . . . . . . . . . . . . . . . . . . . . . . . . . 1 Repair Station Index 1 | . . . . . . . . . . . . . . . . . . . . . . . 1 . . . Unreport Threat 1 | . . . . . . . 1 . . . . . . . . . . . . . . . . . . . Locate Traps 1 | . . . . . . . . . 1 . . . . . . . . . . . . . . . . . Zone Layout 3 | . . . . . . . 2 . . . . . . . . . . . . . . . . . 1 . EX-Prototype ID Bank 1 | . . . 1 . . . . . . . . . . . . . . . . . . . . . . . Disengage Seal 1 | . . . . . . . . . . . . . . . . . . . . . . . . . . 1 Fabricator Hacks . | . . . . . . . . . . . . . . . . . . . . . . . . . . . Repair Station Hacks . | . . . . . . . . . . . . . . . . . . . . . . . . . . . Recycling Unit Hacks . | . . . . . . . . . . . . . . . . . . . . . . . . . . . Scanalyzer . | . . . . . . . . . . . . . . . . . . . . . . . . . . . Garrison Access Hacks 17 | . . . . . 1 . 1 . 1 . 1 . 1 . 1 . 1 . 1 . 1 . 2 . 6 . Unlock Access 10 | . . . . . 1 . 1 . 1 . 1 . 1 . 1 . 1 . 1 . 1 . 1 . . . Seal Access 4 | . . . . . . . . . . . . . . . . . . . . . . . 1 . 3 . Coupler Status 3 | . . . . . . . . . . . . . . . . . . . . . . . . . 3 . Unauthorized Hacks 13 | . . . . . . . 3 . 3 . . . 1 . . . 2 . . . . . . . 3 1 Terminals 10 | . . . . . . . 3 . 3 . . . . . . . 1 . . . . . . . 2 1 Botnet 8 | . . . . . . . 2 . 3 . . . . . . . . . . . . . . . 2 1 Operators 2 | . . . . . . . 1 . . . . . . . . . 1 . . . . . . . . . Fabricators 1 | . . . . . . . . . . . . . . . . . 1 . . . . . . . . . Haulers 1 | . . . . . . . . . . . . . . . . . 1 . . . . . . . . . Repair Stations 1 | . . . . . . . . . . . . . . . . . . . . . . . . . 1 . Mechanics 1 | . . . . . . . . . . . . . . . . . . . . . . . . . 1 . Recycling Units . | . . . . . . . . . . . . . . . . . . . . . . . . . . . Scanalyzers . | . . . . . . . . . . . . . . . . . . . . . . . . . . . Garrison Access 1 | . . . . . . . . . . . . . 1 . . . . . . . . . . . . . Eject 1 | . . . . . . . . . . . . . 1 . . . . . . . . . . . . . Data Cores Recovered . | . . . . . . . . . . . . . . . . . . . . . . . . . . . Used . | . . . . . . . . . . . . . . . . . . . . . . . . . . . Hacking Detections 39 | . 1 1 . 1 2 . 5 . 5 . 1 . 1 . 1 . 3 . 2 . 1 . 4 . 8 3 Full Trace Events 3 | . 1 1 . . . . . . . . 1 . . . . . . . . . . . . . . . Feedback Events 1 | . . 1 . . . . . . . . . . . . . . . . . . . . . . . . Corruption 1 | . . 1 . . . . . . . . . . . . . . . . . . . . . . . . Feedback Blocked . | . . . . . . . . . . . . . . . . . . . . . . . . . . . Robot Schematics Acquired . | . . . . . . . . . . . . . . . . . . . . . . . . . . . Robots Built . | . . . . . . . . . . . . . . . . . . . . . . . . . . . Matter . | . . . . . . . . . . . . . . . . . . . . . . . . . . . Time . | . . . . . . . . . . . . . . . . . . . . . . . . . . . Total Robot Build Rating . | . . . . . . . . . . . . . . . . . . . . . . . . . . . Part Schematics Acquired 3 | . . . . 1 1 . 1 . . . . . . . . . . . . . . . . . . . Parts Built . | . . . . . . . . . . . . . . . . . . . . . . . . . . . Matter . | . . . . . . . . . . . . . . . . . . . . . . . . . . . Time . | . . . . . . . . . . . . . . . . . . . . . . . . . . . Total Part Build Rating . | . . . . . . . . . . . . . . . . . . . . . . . . . . . Parts Repaired . | . . . . . . . . . . . . . . . . . . . . . . . . . . . Time . | . . . . . . . . . . . . . . . . . . . . . . . . . . . Parts Recycled . | . . . . . . . . . . . . . . . . . . . . . . . . . . . Recycled Matter . | . . . . . . . . . . . . . . . . . . . . . . . . . . . Retrieved Matter . | . . . . . . . . . . . . . . . . . . . . . . . . . . . Retrieved Components . | . . . . . . . . . . . . . . . . . . . . . . . . . . . Parts Scanalyzed . | . . . . . . . . . . . . . . . . . . . . . . . . . . . Part Schematics Acquired . | . . . . . . . . . . . . . . . . . . . . . . . . . . . Parts Damaged . | . . . . . . . . . . . . . . . . . . . . . . . . . . . Bothacking | -11 -10 -10 -10 -9 -8 -8 -8 -8 -7 -7 -7 -7 -6 -6 -5 -5 -4 -4 -4 -4 -3 -3 -2 -2 -1 -1 ------------ Run | Scr Mat Min Exi Min Mat Gar Mat Gar Fac Gar Fac Gar Fac Gar Fac Gar Fac Gar Fac Gar Res Gar Res Gar Acc Com Used RIF Installer 10 | . . . . . . 1 . 1 . 1 . 1 . 1 . 1 . 1 . 1 . 1 . 1 . . Command Fork 3 | . . . . . . . . . . 1 . . . . . . . . . . . 1 . 1 . . Robot Detection 1 | . . . . . . . . . . . . . . 1 . . . . . . . . . . . . Patrol Navigation 1 | . . . . . . . . . . . . . . . . 1 . . . . . . . . . . Watcher Feeds 1 | . . . . . . . . . . . . . . . . . . . . 1 . . . . . . Alert ID Control 1 | . . . . . . . . 1 . . . . . . . . . . . . . . . . . . Program Shield 1 | . . . . . . . . . . . . . . . . . . 1 . . . . . . . . Autoassimilate 1 | . . . . . . . . . . . . 1 . . . . . . . . . . . . . . Robots Hacked 234 | . . . . . . . . 9 5 13 4 9 4 13 11 20 18 14 6 19 6 14 11 15 31 12 Non-combat 33 | . . . . . . . . . 5 . 1 1 2 . 5 . 3 . 1 . 1 . 2 . 11 1 Combat 201 | . . . . . . . . 9 . 13 3 8 2 13 6 20 15 14 5 19 5 14 9 15 20 11 Autoassimilated 37 | . . . . . . . . . . . . . . 4 1 5 4 4 . 1 . 3 1 4 7 3 Robot Hacks Applied 205 | . . . . . . . . 10 5 15 4 9 4 9 10 15 15 10 7 18 6 11 11 11 25 10 find_chute 3 | . . . . . . . . . 1 . . . 1 . . . 1 . . . . . . . . . ignore_repairs 3 | . . . . . . . . . . . . . . . 3 . . . . . . . . . . . drop_inventory 7 | . . . . . . . . . 1 . 1 . . . . . 1 . . . . . . . 4 . purge_threat 3 | . . . . . . . . . . . . . . . 1 . . . . . 1 . . . . 1 block_reporting 1 | . . . . . . . . . . . . . . . . . . . . . . . . . 1 . map_route 5 | . . . . . . . . . 1 . . . . . . . . . 1 . . . . . 3 . find_garrison 5 | . . . . . . . . . . . 1 . 1 . . . 1 . 1 . . . 1 . . . scatter_targeting 6 | . . . . . . . . 1 . . . 2 1 . . . . . . . . . . . . 2 spike_heat 3 | . . . . . . . . . . . . . . 1 . . . . 1 . . . . . . 1 overload_power 2 | . . . . . . . . . . . . . . . 1 . . . 1 . . . . . . . amplify_resonance 17 | . . . . . . . . 1 1 2 . . . . 1 6 1 1 . 1 . 2 . . 1 . wipe_record 1 | . . . . . . . . . . 1 . . . . . . . . . . . . . . . . disable_weapons 3 | . . . . . . . . . . . . 1 . . . 1 . . . 1 . . . . . . reboot_system 1 | . . . . . . . . . . . . . . . . . . . 1 . . . . . . . overwrite_iff 25 | . . . . . . . . 2 . 1 . 2 . 1 1 4 1 4 . 6 . 1 1 . 1 . streamctrl_high 9 | . . . . . . . . 4 . 2 . 1 . 1 . . . . . . . 1 . . . . formatsys_low 7 | . . . . . . . . . 1 . . . 1 . . . 2 . . . . . . . 2 1 formatsys_high 104 | . . . . . . . . 2 . 9 2 3 . 6 3 4 8 5 2 10 5 7 9 11 13 5 Relay Couplers Released 165 | . . . . . . 12 . 14 . 14 . 15 3 17 . 16 . 19 . 16 . 16 . 23 . . Ejected 3 | . . . . . . . . . . . . . 3 . . . . . . . . . . . . . Machine Destruction 162 | . . . . . . 12 . 14 . 14 . 15 . 17 . 16 . 19 . 16 . 16 . 23 . . Attached 93 | . . . . . . . . 6 1 7 2 5 3 6 3 7 6 5 1 5 4 6 5 7 10 4 Robots Rewired 7 | . . . . . . . . . . . . . 1 . . 6 . . . . . . . . . . Allies Hacked 7 | . . . . . . . . . . . . 1 . . . . 2 . . . . . . . 3 1 Hacks Repelled . | . . . . . . . . . . . . . . . . . . . . . . . . . . . Allies | -11 -10 -10 -10 -9 -8 -8 -8 -8 -7 -7 -7 -7 -6 -6 -5 -5 -4 -4 -4 -4 -3 -3 -2 -2 -1 -1 -------- Run | Scr Mat Min Exi Min Mat Gar Mat Gar Fac Gar Fac Gar Fac Gar Fac Gar Fac Gar Fac Gar Res Gar Res Gar Acc Com Total Allies 221 | . . . . . . . . 8 1 13 2 6 2 15 5 20 15 13 2 21 5 13 16 19 32 13 Largest Group 29 | . . . . . . . . 2 1 4 4 5 4 12 10 21 24 15 13 17 22 29 28 19 18 5 Highest-Rated Group 1426 | . . . . . . . . 32 20 112 112 146 102 347 379 824 943 618 535 672 992 1426 1388 1054 996 198 Highest-Rated Ally 115 | . . . . . . . . 21 20 32 32 40 40 81 81 81 81 115 58 58 64 64 69 64 64 64 Total Orders 288 | . . . . . . . . 2 1 2 2 13 5 14 12 35 24 28 6 33 7 27 18 23 23 13 STAY 121 | . . . . . . . . 1 . 1 1 6 2 6 5 13 8 11 2 12 4 11 9 13 10 6 ROAM 3 | . . . . . . . . . . . . . . . . 2 . . . . . . . 1 . . FOLLOW 128 | . . . . . . . . 1 . 1 1 7 2 6 5 18 10 12 1 15 3 11 9 9 11 6 AID 36 | . . . . . . . . . 1 . . . 1 2 2 2 6 5 3 6 . 5 . . 2 1 Ally Attacks 1604 | . . . . . . . . 53 . 35 20 55 15 62 43 68 216 105 46 79 1 82 233 119 243 129 Total Damage 43733 | . . . . . . . . 592 . 705 982 1576 511 1577 754 1074 5730 3112 1284 1562 30 2264 7558 4419 7426 2577 Kills 265 | . . . . . . . . 13 . 7 8 14 3 13 10 12 38 18 6 9 . 19 39 14 30 12 Allies Corrupted 12 | . . . . . . . . . . . . . . . . . 2 . . . . . 3 . 4 3 Allies Melted . | . . . . . . . . . . . . . . . . . . . . . . . . . . . Intel | -11 -10 -10 -10 -9 -8 -8 -8 -8 -7 -7 -7 -7 -6 -6 -5 -5 -4 -4 -4 -4 -3 -3 -2 -2 -1 -1 ------- Run | Scr Mat Min Exi Min Mat Gar Mat Gar Fac Gar Fac Gar Fac Gar Fac Gar Fac Gar Fac Gar Res Gar Res Gar Acc Com Robot Analysis Total . | . . . . . . . . . . . . . . . . . . . . . . . . . . . Derelict Logs Recovered 1 | . . 1 . . . . . . . . . . . . . . . . . . . . . . . . Drone Launches . | . . . . . . . . . . . . . . . . . . . . . . . . . . . Drone Recoveries . | . . . . . . . . . . . . . . . . . . . . . . . . . . . Exploration | -11 -10 -10 -10 -9 -8 -8 -8 -8 -7 -7 -7 -7 -6 -6 -5 -5 -4 -4 -4 -4 -3 -3 -2 -2 -1 -1 ------------- Run | Scr Mat Min Exi Min Mat Gar Mat Gar Fac Gar Fac Gar Fac Gar Fac Gar Fac Gar Fac Gar Res Gar Res Gar Acc Com Turns Passed 35670 | 70 539 374 472 422 936 2350 879 2489 559 1596 302 1792 350 1577 537 1896 1000 2566 470 1724 583 1827 1306 2808 2765 3481 Spaces Moved 17897 | 45 276 207 285 253 424 1000 408 1052 354 890 186 1025 194 841 251 911 514 1300 221 867 280 936 824 1636 1251 1466 Core 16 | 16 . . . . . . . . . . . . . . . . . . . . . . . . . . Treads 910 | 29 74 . . . . . . . . . . . . . . . . . . . . . . . 190 617 Legs 849 | . . . . . . . . . . . . . . . . . . . . . . . . . . 849 Wheels 16122 | . 202 207 285 253 424 1000 408 1052 354 890 186 1025 194 841 251 911 514 1300 221 867 280 936 824 1636 1061 . Hover . | . . . . . . . . . . . . . . . . . . . . . . . . . . . Flight . | . . . . . . . . . . . . . . . . . . . . . . . . . . . Fastest Speed 50 | 50 160 175 140 140 135 135 150 140 140 140 140 150 150 150 150 160 160 160 158 158 140 140 125 125 134 145 Average Speed 156 | 126 170 175 161 140 154 189 153 141 140 140 141 152 150 150 153 160 160 162 160 162 140 140 125 149 170 187 Slowest Speed 345 | 160 175 175 175 145 245 230 205 155 140 140 150 225 150 150 160 160 160 175 175 175 140 140 125 175 245 345 Overloaded Moves . | . . . . . . . . . . . . . . . . . . . . . . . . . . . Propulsion Burnouts . | . . . . . . . . . . . . . . . . . . . . . . . . . . . Robots Hopped . | . . . . . . . . . . . . . . . . . . . . . . . . . . . Cave-ins Triggered 1 | . . . . . . 1 . . . . . . . . . . . . . . . . . . . . Exploration Rate (%) 47 | 4 49 31 70 74 37 75 37 70 12 82 10 83 8 71 8 88 17 89 9 77 9 87 22 87 42 45 Regions Visited 26 Branch Regions 4 Pre-discovered Areas 3 | . . 2 1 . . . . . . . . . . . . . . . . . . . . . . . Known Exits Taken 10 | . . . . . 1 . 1 . 1 . 1 . 1 . 1 . 1 . 1 . 1 . 1 . . . Unknown Exits Taken 6 | 1 1 1 1 1 . . . . . . . . . . . . . . . . . . . . 1 . Scrap Searched 1 | . . . . 1 . . . . . . . . . . . . . . . . . . . . . . Spaces Dug 184 | . . . . 39 2 . 2 . . . . 1 3 6 14 11 6 . 4 1 12 15 11 5 36 16 Terrain Destroyed 383 | . 34 . . 39 18 36 33 . . 3 . 1 3 6 14 11 7 10 4 4 12 15 15 7 67 44 Melee 77 | . . . . . . . 2 . . . . 1 3 6 14 11 6 . 4 . . . 2 . 18 10 Projectile 107 | . . . . . 18 1 . . . . . . . . . . 1 . . 1 12 15 11 7 25 16 AOE 199 | . 34 . . 39 . 35 31 . . 3 . . . . . . . 10 . 3 . . 2 . 24 18 Terrain Rammed . | . . . . . . . . . . . . . . . . . . . . . . . . . . . Walls Destroyed . | . . . . . . . . . . . . . . . . . . . . . . . . . . . Machines Disabled . | . . . . . . . . . . . . . . . . . . . . . . . . . . . Actions | -11 -10 -10 -10 -9 -8 -8 -8 -8 -7 -7 -7 -7 -6 -6 -5 -5 -4 -4 -4 -4 -3 -3 -2 -2 -1 -1 --------- Run | Scr Mat Min Exi Min Mat Gar Mat Gar Fac Gar Fac Gar Fac Gar Fac Gar Fac Gar Fac Gar Res Gar Res Gar Acc Com Total 24200 | 55 321 211 297 295 593 1373 608 2000 399 1217 220 1206 241 1110 369 1276 662 1727 318 1163 453 1426 1055 1969 1678 1958 Wait 3484 | . 15 2 . 23 44 256 148 765 3 171 6 54 24 116 73 138 82 274 64 134 142 402 156 167 126 99 Move 17875 | 44 275 206 284 252 423 999 408 1051 354 889 186 1024 193 840 250 910 514 1299 221 866 279 935 823 1634 1250 1466 Hop . | . . . . . . . . . . . . . . . . . . . . . . . . . . . Pick Up 236 | 5 10 . 5 1 20 13 2 18 3 13 3 14 1 15 1 11 1 13 1 13 1 16 2 18 14 22 Fast Attach 121 | 5 3 . 2 1 7 3 2 5 6 3 1 . 2 . 1 2 3 5 3 2 . . 6 6 16 37 Attach 167 | . . . 2 . 12 10 1 7 . 5 . 7 2 4 4 7 9 4 1 17 5 7 5 7 20 31 Detach 94 | . . . 4 1 3 2 1 5 2 2 . 2 2 2 3 2 5 4 1 11 . . 2 4 5 31 Swap 210 | 1 1 . . 2 10 13 8 18 7 7 8 13 2 5 . 3 10 7 3 3 . . 11 11 37 30 Drop 181 | . 4 . . . 7 6 5 20 6 9 7 7 1 12 1 5 1 12 4 7 . 5 3 16 10 33 Fire 882 | . 13 2 . 15 67 47 27 25 14 28 9 20 9 11 19 37 25 31 14 44 25 44 43 53 150 110 Melee 334 | . . . . . . . 6 24 4 9 . 23 5 33 17 37 12 6 6 . . . 4 4 48 96 Ram . | . . . . . . . . . . . . . . . . . . . . . . . . . . . Kick . | . . . . . . . . . . . . . . . . . . . . . . . . . . . Crush 1 | . . 1 . . . . . . . . . . . . . . . . . . . . . . . . Escape Stasis 580 | . . . . . . 24 . 61 . 80 . 40 . 72 . 103 . 72 . 64 . 16 . 48 . . Rewire 35 | . . . . . . . . 1 . 1 . 2 . . . 21 . . . 2 1 1 . 1 2 3 Trap . | . . . . . . . . . . . . . . . . . . . . . . . . . . . Miscellaneous . | . . . . . . . . . . . . . . . . . . . . . . . . . . . Route ------- -11/Scrapyard -10/Materials (discovered 2 exits: [*Mat] / *Min) -10/Mines -10/Exiles -9/Mines -8/Materials (discovered 2 exits: *Fac / Gar) -8/Garrison (discovered 3 exits: *Mat x3) -8/Materials (discovered 3 exits: Fac / [*Sto] / Gar) -8/Garrison (discovered 2 exits: *Fac x2) -7/Factory -7/Garrison (discovered 3 exits: *Fac x3) -7/Factory -7/Garrison (discovered 2 exits: *Fac x2) -6/Factory -6/Garrison (discovered 2 exits: *Fac x2) -5/Factory -5/Garrison (discovered 3 exits: *Fac x3) -4/Factory -4/Garrison (discovered 3 exits: *Fac x3) -4/Factory -4/Garrison (discovered 3 exits: *Res x3) -3/Research (discovered 2 exits: [*Tes] / Gar) -3/Garrison (discovered 3 exits: *Res x3) -2/Research -2/Garrison (discovered 3 exits: *Acc x3) -1/Access -1/Command History --------- Turn | Location | Event 8 | -11/Scrapyard | Discovered new exit (range 15) 71 | -11/Scrapyard | Entered Materials 166 | -10/Materials | Met 8R-AWN 304 | -10/Materials | Build established: Mutant 370 | -10/Materials | Discovered new exit (range 14) 490 | -10/Materials | Discovered new exit (range 9) 610 | -10/Materials | Entered Mines 611 | -10/Mines | Followed 8R-AWN into the Mines 651 | -10/Mines | Learned location of Zion (-6) 822 | -10/Mines | Learned location of Storage (-8) 977 | -10/Mines | Discovered new exit (range 5) 984 | -10/Mines | Entered Exiles 1031 | -10/Exiles | Welcomed by 8R-AWN 1059 | -10/Exiles | Met EX-HEX 1141 | -10/Exiles | Met EX-DEC 1218 | -10/Exiles | Met EX-BIN 1239 | -10/Exiles | Aligned with FarCom system 1241 | -10/Exiles | Given EX-Vault access code 1283 | -10/Exiles | Opened EX-Vault 1294 | -10/Exiles | Found Potential Leg 1298 | -10/Exiles | Found Potential Leg 1305 | -10/Exiles | Found Trap Reconfigurator 1315 | -10/Exiles | Found Superbattery 1344 | -10/Exiles | Warned to stay clear of 0b10 Research branches 1439 | -10/Exiles | Discovered new exit (range 14) 1456 | -10/Exiles | Stole three prototypes: Potential Leg, Superbattery, Trap Reconfigurator 1456 | -10/Exiles | Entered Mines 1495 | -9/Mines | Assembled infested the area 1513 | -9/Mines | Met a Derelict bent on vengeance 1594 | -9/Mines | Received a Rocket Launcher from a helpful Derelict 1852 | -9/Mines | Discovered new exit (range 13) 1878 | -9/Mines | Entered Materials 1878 | -8/Materials | Evolved 4 slots: Utility x4 2144 | -8/Materials | Build established: Skirmisher 2306 | -8/Materials | Discovered new exit (range 8) 2490 | -8/Materials | Lost 8 parts (1p3n2u2w) 2651 | -8/Materials | Build established: Mutant 2800 | -8/Materials | Identified exit to Garrison 2814 | -8/Materials | Entered Garrison 2822 | -8/Garrison | Installed Relay Interface Framework 3003 | -8/Garrison | Crushed by falling debris 3003 | -8/Garrison | System corruption reached 10% 3034 | -8/Garrison | Lost 5 parts (1p2u2w) 3094 | -8/Garrison | Discovered new exit (range 10) 3160 | -8/Garrison | Build established: Scavenger-Mutant 3164 | -8/Garrison | Triggered checkpoint 3181 | -8/Garrison | Triggered checkpoint 3495 | -8/Garrison | Build established: Mutant 3690 | -8/Garrison | Discovered new exit (range 14) 3873 | -8/Garrison | Discovered new exit (range 11) 3938 | -8/Garrison | Triggered checkpoint 3976 | -8/Garrison | Core integrity fell below 50% 4044 | -8/Garrison | Garrison Relay disabled 4200 | -8/Garrison | Triggered checkpoint 4256 | -8/Garrison | Garrison Relay disabled 4698 | -8/Garrison | Triggered checkpoint 4806 | -8/Garrison | Triggered checkpoint 4873 | -8/Garrison | Garrison Relay disabled 5164 | -8/Garrison | Entered Materials 5538 | -8/Materials | Build established: Scavenger-Mutant 5855 | -8/Materials | Discovered new exit (range 15) 5872 | -8/Materials | Discovered new exit (range 15) 6043 | -8/Materials | Identified exit to Garrison 6043 | -8/Materials | Entered Garrison 6147 | -8/Garrison | Triggered checkpoint 6302 | -8/Garrison | Build established: Bothacker-Mutant 6337 | -8/Garrison | Triggered checkpoint 6592 | -8/Garrison | Triggered checkpoint 6979 | -8/Garrison | Garrison Relay disabled 7106 | -8/Garrison | Triggered checkpoint 7118 | -8/Garrison | Triggered checkpoint 7214 | -8/Garrison | Triggered checkpoint 7356 | -8/Garrison | Triggered checkpoint 7535 | -8/Garrison | Garrison Relay disabled 7672 | -8/Garrison | Discovered new exit (range 13) 7835 | -8/Garrison | Discovered new exit (range 10) 7854 | -8/Garrison | Expanded RIF knowledge: Alert ID Control 7892 | -8/Garrison | Triggered checkpoint 7968 | -8/Garrison | Garrison Relay disabled 8532 | -8/Garrison | Entered Factory 8532 | -7/Factory | Evolved 2 slots: Utility x2 8534 | -7/Factory | FarCom data flow suspended 9091 | -7/Factory | Identified exit to Garrison 9091 | -7/Factory | Entered Garrison 9126 | -7/Garrison | Triggered checkpoint 9217 | -7/Garrison | Garrison Relay disabled 9792 | -7/Garrison | Triggered checkpoint 9820 | -7/Garrison | Garrison Relay disabled 9857 | -7/Garrison | Discovered new exit (range 10) 9868 | -7/Garrison | Identified exit to Factory 9878 | -7/Garrison | Expanded RIF knowledge: Command Fork 9950 | -7/Garrison | Triggered checkpoint 9972 | -7/Garrison | Triggered checkpoint 10020 | -7/Garrison | Triggered checkpoint 10051 | -7/Garrison | Garrison Relay disabled 10104 | -7/Garrison | Discovered exit to Factory (range 14) 10200 | -7/Garrison | Triggered checkpoint 10252 | -7/Garrison | Discovered exit to Factory (range 13) 10310 | -7/Garrison | Triggered checkpoint 10343 | -7/Garrison | Garrison Relay disabled 10687 | -7/Garrison | Entered Factory 10687 | -7/Factory | Accompanied by 4 allies 10907 | -7/Factory | Garrison activated, responded to threat 10989 | -7/Factory | Identified exit to Garrison 10989 | -7/Factory | Entered Garrison 10989 | -7/Garrison | Accompanied by 3 allies 11052 | -7/Garrison | Triggered checkpoint 11118 | -7/Garrison | Garrison Relay disabled 11216 | -7/Garrison | Triggered checkpoint 11262 | -7/Garrison | Triggered checkpoint 11324 | -7/Garrison | Triggered checkpoint 11460 | -7/Garrison | Triggered checkpoint 11585 | -7/Garrison | Garrison Relay disabled 11644 | -7/Garrison | Discovered new exit (range 12) 11659 | -7/Garrison | Identified exit to Factory 11670 | -7/Garrison | Expanded RIF knowledge: Autoassimilate 11786 | -7/Garrison | Discovered exit to Factory (range 13) 11852 | -7/Garrison | Triggered checkpoint 11911 | -7/Garrison | Garrison Relay disabled 11972 | -7/Garrison | Build established: Botlord-Mutant 12248 | -7/Garrison | Triggered checkpoint 12307 | -7/Garrison | Garrison Relay disabled 12781 | -7/Garrison | Entered Factory 12781 | -6/Factory | Accompanied by 2 allies 12781 | -6/Factory | Evolved 2 slots: Utility x2 13098 | -6/Factory | Identified exit to Garrison 13131 | -6/Factory | Entered Garrison 13131 | -6/Garrison | Accompanied by 4 allies 13198 | -6/Garrison | Triggered checkpoint 13276 | -6/Garrison | Garrison Relay disabled 13357 | -6/Garrison | Spotted B-75 Beast 13368 | -6/Garrison | Autoassimilated Beast 5a with RIF 13388 | -6/Garrison | Triggered checkpoint 13420 | -6/Garrison | Triggered checkpoint 13673 | -6/Garrison | Garrison Relay disabled 13720 | -6/Garrison | Discovered new exit (range 14) 13750 | -6/Garrison | Expanded RIF knowledge: Robot Detection 13877 | -6/Garrison | Discovered new exit (range 10) 13912 | -6/Garrison | Triggered checkpoint 13977 | -6/Garrison | Garrison Relay disabled 14278 | -6/Garrison | Triggered checkpoint 14318 | -6/Garrison | Garrison Relay disabled 14708 | -6/Garrison | Entered Factory 14708 | -5/Factory | Accompanied by 9 allies 14708 | -5/Factory | Evolved 2 slots: Utility x2 15198 | -5/Factory | Identified exit to Garrison 15245 | -5/Factory | Entered Garrison 15245 | -5/Garrison | Accompanied by 8 allies 15253 | -5/Garrison | Expanded RIF knowledge: Watcher Feeds 15418 | -5/Garrison | Triggered checkpoint 15452 | -5/Garrison | Garrison Relay disabled 15536 | -5/Garrison | Spotted B-75 Beast 15547 | -5/Garrison | Assimilated Beast 6a with formatsys_high 15564 | -5/Garrison | Triggered checkpoint 15572 | -5/Garrison | Triggered checkpoint 15725 | -5/Garrison | Triggered checkpoint 15784 | -5/Garrison | Discovered new exit (range 14) 15984 | -5/Garrison | Triggered checkpoint 16034 | -5/Garrison | Garrison Relay disabled 16169 | -5/Garrison | Discovered new exit (range 9) 16226 | -5/Garrison | Triggered checkpoint 16241 | -5/Garrison | Garrison Relay disabled 16416 | -5/Garrison | Discovered new exit (range 10) 16444 | -5/Garrison | Triggered checkpoint 16508 | -5/Garrison | Triggered checkpoint 16552 | -5/Garrison | Garrison Relay disabled 17141 | -5/Garrison | Entered Factory 17141 | -4/Factory | Accompanied by 19 allies 17141 | -4/Factory | Evolved 2 slots: Utility x2 17469 | -4/Factory | P-70 Sage assimilated allied Soldier 6e 17658 | -4/Factory | P-70 Sage assimilated allied Virus 7b 18028 | -4/Factory | P-70 Sage assimilated allied Smith 5a 18069 | -4/Factory | Garrison activated, responded to threat 18125 | -4/Factory | Identified exit to Garrison 18141 | -4/Factory | Entered Garrison 18141 | -4/Garrison | Accompanied by 13 allies 18238 | -4/Garrison | Triggered checkpoint 18240 | -4/Garrison | Triggered checkpoint 18290 | -4/Garrison | Triggered checkpoint 18321 | -4/Garrison | Garrison Relay disabled 18485 | -4/Garrison | Spotted B-86 Titan 18486 | -4/Garrison | Triggered checkpoint 18504 | -4/Garrison | Allies destroyed B-86 Titan 18526 | -4/Garrison | Triggered checkpoint 18710 | -4/Garrison | Triggered checkpoint 18738 | -4/Garrison | Garrison Relay disabled 18870 | -4/Garrison | Discovered new exit (range 9) 19119 | -4/Garrison | Discovered new exit (range 13) 19149 | -4/Garrison | Expanded RIF knowledge: Program Shield 19362 | -4/Garrison | Triggered checkpoint 19542 | -4/Garrison | Garrison Relay disabled 19798 | -4/Garrison | Triggered checkpoint 20072 | -4/Garrison | Discovered new exit (range 10) 20707 | -4/Garrison | Entered Factory 20707 | -4/Factory | Accompanied by 11 allies 21175 | -4/Factory | Identified exit to Garrison 21177 | -4/Factory | Entered Garrison 21177 | -4/Garrison | Accompanied by 7 allies 21185 | -4/Garrison | Expanded RIF knowledge: Patrol Navigation 21252 | -4/Garrison | Triggered checkpoint 21272 | -4/Garrison | Garrison Relay disabled 21322 | -4/Garrison | Triggered checkpoint 21332 | -4/Garrison | Spotted B-86 Titan 21394 | -4/Garrison | Allies destroyed B-86 Titan 21633 | -4/Garrison | Triggered checkpoint 21650 | -4/Garrison | Triggered checkpoint 21829 | -4/Garrison | Discovered new exit (range 10) 21882 | -4/Garrison | Triggered checkpoint 21922 | -4/Garrison | Garrison Relay disabled 22062 | -4/Garrison | Triggered checkpoint 22234 | -4/Garrison | Triggered checkpoint 22331 | -4/Garrison | Garrison Relay disabled 22373 | -4/Garrison | Discovered new exit (range 14) 22538 | -4/Garrison | Discovered new exit (range 13) 22606 | -4/Garrison | Triggered checkpoint 22667 | -4/Garrison | Garrison Relay disabled 22901 | -4/Garrison | Entered Research 22901 | -3/Research | Accompanied by 17 allies 22901 | -3/Research | Evolved 2 slots: Propulsion x1, Utility x1 23052 | -3/Research | Discovered new exit (range 9) 23448 | -3/Research | Identified exit to Garrison 23484 | -3/Research | Entered Garrison 23484 | -3/Garrison | Accompanied by 21 allies 23510 | -3/Garrison | Expanded RIF knowledge: Command Fork 23594 | -3/Garrison | Triggered checkpoint 23651 | -3/Garrison | Garrison Relay disabled 23770 | -3/Garrison | Triggered checkpoint 23776 | -3/Garrison | Triggered checkpoint 23779 | -3/Garrison | Triggered checkpoint 23797 | -3/Garrison | Triggered checkpoint 23934 | -3/Garrison | Triggered checkpoint 24080 | -3/Garrison | Garrison Relay disabled 24148 | -3/Garrison | Discovered new exit (range 14) 24275 | -3/Garrison | Discovered new exit (range 10) 24342 | -3/Garrison | Triggered checkpoint 24358 | -3/Garrison | Garrison Relay disabled 24521 | -3/Garrison | Discovered new exit (range 13) 24587 | -3/Garrison | Triggered checkpoint 24631 | -3/Garrison | Garrison Relay disabled 25311 | -3/Garrison | Entered Research 25311 | -2/Research | Accompanied by 27 allies 25311 | -2/Research | Evolved 2 slots: Propulsion x1, Utility x1 25876 | -2/Research | Garrison activated, responded to threat 26604 | -2/Research | Identified exit to Garrison 26617 | -2/Research | Entered Garrison 26617 | -2/Garrison | Accompanied by 10 allies 26636 | -2/Garrison | Triggered checkpoint 26886 | -2/Garrison | Triggered checkpoint 26892 | -2/Garrison | Garrison Relay disabled 27033 | -2/Garrison | Spotted B-90 Cyclops 27038 | -2/Garrison | Triggered checkpoint 27043 | -2/Garrison | Triggered checkpoint 27047 | -2/Garrison | Triggered checkpoint 27060 | -2/Garrison | Allies destroyed B-90 Cyclops 27229 | -2/Garrison | Spotted B-90 Cyclops 27235 | -2/Garrison | Garrison Relay disabled 27258 | -2/Garrison | Triggered checkpoint 27322 | -2/Garrison | Garrison Relay disabled 27791 | -2/Garrison | Discovered new exit (range 10) 27997 | -2/Garrison | Discovered new exit (range 10) 28282 | -2/Garrison | Triggered checkpoint 28288 | -2/Garrison | Garrison Relay disabled 28478 | -2/Garrison | Triggered checkpoint 28732 | -2/Garrison | Triggered checkpoint 28766 | -2/Garrison | Garrison Relay disabled 28963 | -2/Garrison | Discovered new exit (range 15) 29001 | -2/Garrison | Expanded RIF knowledge: Command Fork 29243 | -2/Garrison | Found Antimissile System 29425 | -2/Garrison | Entered Access 29425 | -1/Access | Accompanied by 18 allies 29425 | -1/Access | Evolved 2 slots: Power x1, Utility x1 29940 | -1/Access | Garrison activated, responded to threat 30312 | -1/Access | Garrison activated, responded to threat 31094 | -1/Access | System corruption reached 10% 31171 | -1/Access | Lost 3 parts (3u) 31439 | -1/Access | Garrison activated, responded to threat 31557 | -1/Access | P-80 Master assimilated allied Artificer 10a 31713 | -1/Access | Lost 8 parts (1p3n2u2w) 32168 | -1/Access | Discovered new exit (range 8) 32190 | -1/Access | Entered Command 32190 | -1/Command | Accompanied by 4 allies 32521 | -1/Command | System corruption reached 30% 32661 | -1/Command | Disengaged cave seal 32846 | -1/Command | Spotted B-99 Colossus 33540 | -1/Command | Lost 4 parts (3u1w) 34047 | -1/Command | Lost 3 parts (3u) 34123 | -1/Command | Found Prototype Slashing Weapon 34123 | -1/Command | Identified Molecular Scythe 34634 | -1/Command | Found Prototype Device 34634 | -1/Command | Identified Beam Splitter 35080 | -1/Command | Lost 4 parts (1n2u1w) 35109 | -1/Command | Found Quantum Capacitor 35243 | -1/Command | Core integrity fell below 50% 35290 | -1/Command | Lost 5 parts (1p1n3u) 35593 | -1/Command | Found Unknown Protection 35593 | -1/Command | Identified Hvy. Reactive Plating 35620 | -1/Command | Spotted M Guard 35621 | -1/Command | Spotted M Guard 35621 | -1/Command | Spotted Combat Programmer 35621 | -1/Command | Spotted Combat Programmer 35672 | -1/Command | System corrupted Last Messages --------------- 35662_ Slug penetrates Combat Programmer. 35662_ Hellfire Missile intercepted. 35663_ System corrupted: Component data lost. 35663_ Penetrated by EMDS Slug. 35664_ The unstable cave ceiling collapses. 35664_ Slug penetrates Combat Programmer. 35666_ The unstable cave ceiling collapses. 35666_ Penetrated by EMDS Slug. 35666_ Hrd. Heavy Armor Plating destroyed. 35667_ Lgt. Antimatter Reactor destroyed. 35667_ Antimissile System destroyed. 35668_ Penetrated by EMDS Slug. 35668_ Biometal Leg destroyed. 35668_ Hcp. Matter Pod destroyed. 35669_ The unstable cave ceiling collapses. 35670_ Slug penetrates Combat Programmer. 35671_ Penetrated by EMDS Slug. 35671_ Adv. Weapon Cycler destroyed. 35671_ Penetrated by EMDS Slug. 35672_ Cogmind system terminally corrupted. Map ----- +----------------------------------------------------+ | ???????????????????????????????????# != | | ???????????????????????????????????# = | | ???????????????????????????????????# | | ???????????????????????????????????# | | ???????????????????????????????????# | | ???????????????????????????????????# | | ???????????????????????????????????#######"####### | | ????????????????????????????????????????# | | ????????????????????????????????????????# | | ????????????????????????????????????????# """" | | ????????????????????????????????????????# """" | | ????????????????????????????????????????# """" | | ????????????????????????????????????????# """" | | ????????????????????????????????????????# *!* | | ????????????????????????????????????????# !%= | | ????????????????????????????????????????#######+## | | ????????????????????????????????????????????# ! | | ????????????????????????????????????????????# % | | ???????????????##????####??#####?#####??????# | | ???????????????# ???# ??#! #?#[[ #??????# | | ????????????#### W ### W ###!% ###]% ######## | | ??????????? !! ! + | | ??????????? Y / + | | ?????????? p + | | ?????????? p + | | ?????????? Y @ =* + | | ???????????????# ## W # *### %=#####+#### | | ???????????????? ???# # #?#![[#??# ! + | | ????????????????????## # ###?#####??# ! ## | | ?????????????????????## ##??????????# ## | | ??????????????????????#######???????????# ## | | ????????????????????????????????????????# !*## # | | ????????????????????????????????????????# !=%## # | | ????????????????????????????????????????# !== + | | ????????????????????????????????????????# !## # | | ????????????????????????????????????????# ## # | | ????????????????????????????????????????#|=[ ## # | | ????????????????????????????????????????#=[!= ## # | | ????????????????????????????????????????##"##### # | | ?????????????????????????????????????????#%?# # | | ?????????????????????????????????????#####%## T # | | ?????????????????????????????????????# * = # "" + | | ?????????????????????????????????????# * # # | | ?????????????????????????????????????# ## ## | | ?????????????????????????????????????# ## #? | | ?????????????????????????????????????# ## #? | | ??????????????????????????????????????? ## #? | | ???????????????????????????????????######+#+## #? | | ???????????????????????????????????# # #? | | ???????????????????????????????????# + #? | +----------------------------------------------------+ Best States ------------- Heat Dissipation 121 Coolant Potential 100 Energy Generation 45 Energy Capacity 2010 Matter Stores 500 Matter Capacity 500 Sight Range 20 Robot Scan Range 15 Terrain Scan Density 10 Jamming Range 16 Armor Coverage 3300 Resistance: KI 40 Utility Shielding 66 Weapon Shielding 66 Point Defense Rating 240 Weapon Cycling 25 Phase Shifting 15 Evasion (%) 55 Targeting Accuracy 16 Melee Accuracy 8 Target Analysis 8 Recoil Reduction 4 Matter Filtering 30 Offensive Hacking 28 Defensive Hacking 10 Relay Coupler Types 216 Relay Coupler Value 8 Item Schematics ----------------- Huge Storage Unit | -9/Mines | Hacked Cargo Storage Unit | -8/Materials | Hacked Datajack | -8/Materials | Hacked Robot Schematics ------------------ None Fabricated ------------ Nothing Alien Tech Used ----------------- None Achievements -------------- None Challenges ------------ None Game ------ Seed BehemothBottomlessHammer Manual? 0 Play Time 12:22:14 Cumulative 332.0 hours Start 2021.02.09 @ 09:03:41 End 2021.03.02 @ 11:39:20 Sessions 7 Manual Loads 0 Difficulty Rogue Special Mode None Game No. 99 Rogue 99 Adventurer 0 Explorer 0 Win Type - Total 23 Types 18/0/1/2/0/1/0/1/0 Lore% 39 Gallery% 80 Achievement% 80 Wizard Run 0 Options --------- ASCII 0 Keyboard 1 Movement Numpad Keybinds 0 Fullscreen 2 Font 20/SmallcapsGlow Map View 66x50 Tactical HUD 1 Map Filters NONE Filters NONE Steam 1 RUN: 3e943891-df06-4fcf-9428-0c68a10cb89b